Cogmind - Beta 14 @@@ ROGUE MODE // 2024.10.05 @ 03:13:27 Player: Carpathian Result: Self-destructed Performance ------------- Evolutions (3) 1500 Regions Visited (7) 1400 Robots Destroyed (31) 155 Value Destroyed (1090) 1090 Prototype IDs (0) 0 Alien Tech Used (0) 0 Bonus (500) 500 TOTAL SCORE: 4645 Bonus ------- Entered DSFs 500 Cogmind --------- Core Integrity 556/700 Matter 1/300 Energy 240/240 System Corruption 0% Temperature Cool (0) Movement Core (750) Ox14 Location -7/DSF Parts ------- > --- POWER (2) -------- Nuclear Core > --- PROPULSION (2) --- (None) > --- UTILITY (7) ------ Large Storage Unit Improved Sensor Array Advanced Targeting Computer Hardened Medium Armor Plating > --- WEAPON (2) ------- Heavy Assault Rifle Advanced Assault Cannon > --- INVENTORY (15) --- Light Nuclear Core Improved Treads Improved Treads Hardened Light Armor Plating EM Shotgun Shotgun High-powered Shotgun Rocket Launcher Mining Laser Peak State ------------ > --- POWER ------------ Light Ion Engine > --- PROPULSION ------- Medium Treads Medium Treads > --- UTILITY ---------- Large Storage Unit Improved Sensor Array Advanced Targeting Computer Reflective Plating > --- WEAPON ----------- Advanced Assault Cannon Advanced Assault Cannon > --- INVENTORY -------- Light Nuclear Core Improved Treads Improved Treads Improved Treads Hardened Light Armor Plating Hardened Medium Armor Plating EM Shotgun Heavy Assault Rifle Autogun Shotgun Rocket Launcher Mining Laser [Rating: 29] Favorites ----------- Power Ion Engine Engine Ion Engine Power Core Nuclear Core Propulsion Improved Treads Treads Improved Treads Utility Small Storage Unit Device Improved Sensor Array Storage Small Storage Unit Processor Advanced Targeting Computer Protection Weapon Shielding Weapon Autogun Ballistic Gun Autogun Ballistic Cannon Advanced Assault Cannon Launcher Rocket Launcher Build | -11 -10 -10 -9 -9 -8 -7 -7 ------- Run | Yrd Mat Min Mat Min Mat Fac DSF Slots Evolved 6 | . . . 2 . 2 2 . Power 1 | . . . . . 1 . . Propulsion . | . . . . . . . . Utility 5 | . . . 2 . 1 2 . Weapon . | . . . . . . . . Parts Attached 31 | 6 3 1 6 . 8 . 7 Power 4 | 1 1 . . . 1 . 1 Engine 3 | 1 1 . . . 1 . . Core 1 | . . . . . . . 1 Reactor . | . . . . . . . . Propulsion 8 | 2 2 . 1 . 1 . 2 Treads 8 | 2 2 . 1 . 1 . 2 Leg . | . . . . . . . . Wheel . | . . . . . . . . Hover . | . . . . . . . . Flight . | . . . . . . . . Utility 7 | 1 . . 2 . 3 . 1 Device 1 | . . . . . 1 . . Storage 2 | 1 . . . . 1 . . Processor 1 | . . . . . 1 . . Hackware . | . . . . . . . . Protection 3 | . . . 2 . . . 1 Artifact . | . . . . . . . . Weapon 12 | 2 . 1 3 . 3 . 3 Energy Gun . | . . . . . . . . Energy Cannon . | . . . . . . . . Ballistic Gun 7 | 2 . . 3 . 1 . 1 Ballistic Cannon 3 | . . . . . 2 . 1 Launcher 2 | . . 1 . . . . 1 Special Weapon . | . . . . . . . . Impact Weapon . | . . . . . . . . Slashing Weapon . | . . . . . . . . Piercing Weapon . | . . . . . . . . Special Melee Weapon . | . . . . . . . . Unidentified Prototypes . | . . . . . . . . Parts Lost 5 | . . . . . 2 . 3 Power . | . . . . . . . . Propulsion 3 | . . . . . 1 . 2 Utility 2 | . . . . . 1 . 1 Weapon . | . . . . . . . . Highest Loss Streak 1 | . . . . . 1 . 1 To Critical Strikes . | . . . . . . . . Average Slot Usage (%) 78 | . 85 85 81 88 79 69 62 Engine 9 | . 14 14 11 11 9 7 1 Treads 20 | . 28 28 22 22 16 15 11 Device 2 | . . . . . 4 7 7 Storage 10 | . 14 14 11 11 9 7 7 Processor 2 | . . . . . 5 7 7 Protection 11 | . . . 15 22 16 7 4 Ballistic Gun 17 | . 28 26 21 22 10 . 3 Ballistic Cannon 3 | . . . . . 7 15 9 Peak Build Rating 29 | 6 9 9 15 15 25 25 29 Average Rating 15 | 5 7 9 13 15 19 25 25 On Entrance 13 | . 6 9 9 15 15 25 25 Naked Turns . | . . . . . . . . Heaviest Build 45 | 11 13 14 21 21 41 40 45 Greatest Support 56 | 40 46 46 46 46 46 46 56 Greatest Overweight (x) 14 | 1 . . . . . . 14 Average Overweight (x) . | . . . . . . . 1 Largest Inventory Capacity 15 | 8 8 8 8 8 15 15 15 Average Capacity 10 | 7 8 8 8 8 12 15 15 Most Carried 12 | 3 7 7 8 8 10 10 12 Average Carried 7 | 1 4 7 7 8 7 10 10 Final Capacity 15 | 8 8 8 8 8 15 15 15 Final Carried 10 | 3 7 7 8 8 10 10 9 Class Distribution -------------------- 100% | Mutant Dominant Class ---------------- Mutant | -10/Materials Mutant | -10/Mines Mutant | -9/Materials Mutant | -9/Mines Mutant | -8/Materials Mutant | -7/Factory Mutant | -7/DSF Resources | -11 -10 -10 -9 -9 -8 -7 -7 ----------- Run | Yrd Mat Min Mat Min Mat Fac DSF Matter Collected 998 | 260 66 . 212 . 333 . 127 Remotely . | . . . . . . . . Salvage Created 1024 | . 125 19 245 . 397 . 238 Parts 62 | . 6 4 22 . 18 . 12 Haulers Intercepted 1 | . . . 1 . . . . Recyclers Shooed 1 | . . . 1 . . . . Parts Field Recycled . | . . . . . . . . Retrieved Matter . | . . . . . . . . Parts Self-Destructed . | . . . . . . . . Prevented . | . . . . . . . . Kills | -11 -10 -10 -9 -9 -8 -7 -7 ------- Run | Yrd Mat Min Mat Min Mat Fac DSF Combat Hostiles Destroyed 30 | . 3 2 9 . 9 . 7 Guns 18 | . 3 1 9 . 5 . . Cannons 8 | . . . . . 4 . 4 AOE 4 | . . 1 . . . . 3 Classes Destroyed 7 | . 1 1 2 . . . 3 Hauler 1 | . . . 1 . . . . Swarmer 9 | . . 2 7 . . . . Grunt 11 | . 3 . . . 6 . 2 Sentry 5 | . . . 2 . 3 . . Specialist 2 | . . . . . . . 2 Hunter 2 | . . . . . . . 2 Heavy 1 | . . . . . . . 1 Best Kill Streak 5 | . 2 2 4 . 5 . 3 Combat Bots Only 5 | . 2 2 4 . 5 . 3 Max Kills in Single Turn 2 | . 1 2 2 . 1 . 2 Gunslinging 1 | . . . 1 . . . . Exploded 2 | . . 1 . . . . 2 Melee . | . . . . . . . . Uniques/NPCs Destroyed . | . . . . . . . . Combat | -11 -10 -10 -9 -9 -8 -7 -7 -------- Run | Yrd Mat Min Mat Min Mat Fac DSF Hostile Shots Fired 215 | . 11 6 38 . 55 . 105 Missed 67 | . 3 2 14 . 15 . 33 Damage Taken 2059 | . 90 32 228 . 585 . 1124 Core 268 | . 10 . 27 . 87 . 144 Absorbed by Shields . | . . . . . . . . Redirected to Shielding 52 | . . . 11 . 41 . . Ignored by Resistances 56 | . . . . . 56 . . Core Remaining (%) 93 | 100 . 96 . 93 84 . . Volleys Fired 90 | . 9 1 19 . 27 . 34 Largest 2 | . 2 2 2 . 2 . 2 Hottest 96 | . 40 50 46 . 96 . 96 Shots Fired 173 | . 18 2 38 . 54 . 61 Gun 108 | . 18 1 38 . 36 . 15 Cannon 56 | . . . . . 18 . 38 Launcher 9 | . . 1 . . . . 8 Special . | . . . . . . . . Kinetic 164 | . 18 1 38 . 54 . 53 Thermal . | . . . . . . . . Explosive 9 | . . 1 . . . . 8 Electromagnetic . | . . . . . . . . Robot Hit Streak 14 | . 7 7 14 . 8 . 6 Robot Miss Streak 5 | . 5 . 5 . 3 . 3 Penetration Max . | . . . . . . . . Secondary Targets 5 | . 1 . 2 . 2 . . Max Gunslinging Chain 1 | . 1 . 1 . 1 . . Shots Hit Robots 114 | . 13 1 24 . 38 . 38 Core Hits 60 | . 6 2 12 . 20 . 20 Critical Kills 1 | . . . 1 . . . . Critical Parts Destroyed 1 | . . . 1 . . . . Critical Strikes 3 | . . . 2 . 1 . . Destroy 2 | . . . 2 . . . . Blast 1 | . . . . . 1 . . Melee Attacks . | . . . . . . . . Impact . | . . . . . . . . Slashing . | . . . . . . . . Piercing . | . . . . . . . . Sneak Attacks . | . . . . . . . . Combat Hostiles . | . . . . . . . . Follow-up Attacks . | . . . . . . . . Damage Inflicted 2726 | . 133 40 339 . 702 . 1512 Guns 1081 | . 133 9 339 . 430 . 170 Cannons 661 | . . . . . 272 . 389 Explosions 984 | . . 31 . . . . 953 Melee . | . . . . . . . . Ramming . | . . . . . . . . Kinetic 1742 | . 133 9 339 . 702 . 559 Thermal . | . . . . . . . . Explosive 984 | . . 31 . . . . 953 Electromagnetic . | . . . . . . . . Impact . | . . . . . . . . Slashing . | . . . . . . . . Piercing . | . . . . . . . . Highest Corruption . | . . . . . . . . Average Corruption . | . . . . . . . . Corruption Purged . | . . . . . . . . Corruption Blocked . | . . . . . . . . Overload Shots . | . . . . . . . . Overflow Damage 7 | . . . . . . . 7 Projectiles . | . . . . . . . . Explosions 7 | . . . . . . . 7 Melee . | . . . . . . . . Knockbacks 7 | . . . . . 2 . 5 Impact . | . . . . . . . . Kinetic 6 | . . . . . 2 . 4 Secondary 1 | . . . . . . . 1 Self-Inflicted Damage . | . . . . . . . . Shots . | . . . . . . . . Rammed . | . . . . . . . . Targets Rammed . | . . . . . . . . Kicked . | . . . . . . . . Crushed . | . . . . . . . . Highest Temperature 214 | . 6 10 18 . 214 . 12 Average Temperature 45 | . 6 7 6 . 65 . 6 Received Heat Transfer 534 | . 48 . 27 . 252 . 207 Siege Activations . | . . . . . . . . Robots Corrupted . | . . . . . . . . Combat Hostiles . | . . . . . . . . Parts Fried . | . . . . . . . . Impact Corruptions . | . . . . . . . . Robots Melted . | . . . . . . . . Combat Hostiles . | . . . . . . . . Parts Melted . | . . . . . . . . Heat Transferred . | . . . . . . . . Parts Sabotaged . | . . . . . . . . Parts Stolen . | . . . . . . . . Parts Stripped . | . . . . . . . . Power Chain Reactions . | . . . . . . . . Alert | -11 -10 -10 -9 -9 -8 -7 -7 ------- Run | Yrd Mat Min Mat Min Mat Fac DSF Peak Influence 253 | . 120 122 212 69 221 44 253 Initial 69 | . . 46 47 69 26 39 30 Average 103 | . 64 53 97 69 140 39 151 Maximum Alert Level 1 | . . . 1 . 1 . 1 Low Security (%) 91 | 100 100 100 97 100 85 100 70 Level 1 8 | . . . 2 . 14 . 29 Level 2 . | . . . . . . . . Level 3 . | . . . . . . . . Level 4 . | . . . . . . . . Level 5 . | . . . . . . . . High Security . | . . . . . . . . Max Security . | . . . . . . . . Squads Dispatched 4 | . . . . . 2 . 2 Investigation 1 | . . . . . 1 . . Extermination . | . . . . . . . . Reinforcement 3 | . . . . . 1 . 2 Assault . | . . . . . . . . Garrison . | . . . . . . . . Intercept . | . . . . . . . . Searches Triggered . | . . . . . . . . Construction Impeded . | . . . . . . . . Haulers Reinforced . | . . . . . . . . Active Scanning Responses . | . . . . . . . . Cargo Convoy Interrupts . | . . . . . . . . Stealth | -11 -10 -10 -9 -9 -8 -7 -7 --------- Run | Yrd Mat Min Mat Min Mat Fac DSF Distress Signals 3 | . . . 1 . 2 . . Communications Jammed . | . . . . . . . . Distress Signals . | . . . . . . . . Times Spotted 55 | . 6 3 22 . 12 . 12 Peak Tracking Total 6 | . 4 3 6 . 5 . 4 Tactical Retreats 3 | . . . 1 . . . 2 Traps | -11 -10 -10 -9 -9 -8 -7 -7 ------- Run | Yrd Mat Min Mat Min Mat Fac DSF Traps Triggered 2 | . . . . . 2 . . Indirectly . | . . . . . . . . Trap Hack Attempts . | . . . . . . . . Triggered . | . . . . . . . . Disarmed . | . . . . . . . . Reprogrammed . | . . . . . . . . Reused . | . . . . . . . . Traps Extracted . | . . . . . . . . Installed . | . . . . . . . . Triggered . | . . . . . . . . Machines | -11 -10 -10 -9 -9 -8 -7 -7 ---------- Run | Yrd Mat Min Mat Min Mat Fac DSF Machines Disabled 1 | . 1 . . . . . . Max in Single Turn 1 | . 1 . . . . . . Machines Repaired . | . . . . . . . . Machines Dismantled . | . . . . . . . . Machines Sabotaged . | . . . . . . . . Overloaded Fab Kills . | . . . . . . . . Hacking | -11 -10 -10 -9 -9 -8 -7 -7 --------- Run | Yrd Mat Min Mat Min Mat Fac DSF Machines Accessed 3 | . 1 . 1 . . 1 . Terminals 3 | . 1 . 1 . . 1 . Fabricators . | . . . . . . . . Repair Stations . | . . . . . . . . Recycling Units . | . . . . . . . . Scanalyzers . | . . . . . . . . Garrison Access . | . . . . . . . . Total Hacks 6 | . 1 . 4 . . 1 . Successful 3 | . . . 2 . . 1 . Failed 3 | . 1 . 2 . . . . Catastrophic . | . . . . . . . . Database Lockouts . | . . . . . . . . Manual 1 | . 1 . . . . . . Terminals 6 | . 1 . 4 . . 1 . Fabricators . | . . . . . . . . Repair Stations . | . . . . . . . . Recycling Units . | . . . . . . . . Scanalyzers . | . . . . . . . . Garrison Access . | . . . . . . . . Terminal Hacks 3 | . . . 2 . . 1 . Record 1 | . . . 1 . . . . Open DSF 1 | . . . . . . 1 . Zone Layout 1 | . . . 1 . . . . Fabricator Hacks . | . . . . . . . . Repair Station Hacks . | . . . . . . . . Recycling Unit Hacks . | . . . . . . . . Scanalyzer . | . . . . . . . . Garrison Access Hacks . | . . . . . . . . Unauthorized Hacks . | . . . . . . . . Terminals . | . . . . . . . . Fabricators . | . . . . . . . . Repair Stations . | . . . . . . . . Recycling Units . | . . . . . . . . Scanalyzers . | . . . . . . . . Garrison Access . | . . . . . . . . Data Cores Recovered . | . . . . . . . . Used . | . . . . . . . . Hacking Detections 1 | . . . . . . 1 . Full Trace Events . | . . . . . . . . Feedback Events . | . . . . . . . . Feedback Blocked . | . . . . . . . . Robot Schematics Acquired . | . . . . . . . . Robots Built . | . . . . . . . . Authchips . | . . . . . . . . Time . | . . . . . . . . Total Robot Build Rating . | . . . . . . . . Part Schematics Acquired . | . . . . . . . . Parts Built . | . . . . . . . . Authchips . | . . . . . . . . Time . | . . . . . . . . Total Part Build Rating . | . . . . . . . . Parts Repaired . | . . . . . . . . Time . | . . . . . . . . Parts Recycled . | . . . . . . . . Recycled Matter . | . . . . . . . . Retrieved Matter . | . . . . . . . . Retrieved Components . | . . . . . . . . Parts Scanalyzed . | . . . . . . . . Part Schematics Acquired . | . . . . . . . . Parts Damaged . | . . . . . . . . Bothacking | -11 -10 -10 -9 -9 -8 -7 -7 ------------ Run | Yrd Mat Min Mat Min Mat Fac DSF Used RIF Installer . | . . . . . . . . Robots Hacked . | . . . . . . . . Non-combat . | . . . . . . . . Combat . | . . . . . . . . Robot Hacks Applied . | . . . . . . . . Relay Couplers Released . | . . . . . . . . Fabnet Peak Effective % . | . . . . . . . . Robots Rewired . | . . . . . . . . Allies Hacked . | . . . . . . . . Hacks Repelled . | . . . . . . . . Allies | -11 -10 -10 -9 -9 -8 -7 -7 -------- Run | Yrd Mat Min Mat Min Mat Fac DSF Total Allies . | . . . . . . . . Largest Group . | . . . . . . . . Highest-Rated Group . | . . . . . . . . Highest-Rated Ally . | . . . . . . . . Total Orders . | . . . . . . . . Ally Attacks . | . . . . . . . . Total Damage . | . . . . . . . . Kills . | . . . . . . . . Allies Corrupted . | . . . . . . . . Allies Melted . | . . . . . . . . Intel | -11 -10 -10 -9 -9 -8 -7 -7 ------- Run | Yrd Mat Min Mat Min Mat Fac DSF Robot Analysis Total . | . . . . . . . . Derelict Logs Recovered . | . . . . . . . . Drone Launches . | . . . . . . . . Drone Recoveries . | . . . . . . . . Exploration | -11 -10 -10 -9 -9 -8 -7 -7 ------------- Run | Yrd Mat Min Mat Min Mat Fac DSF Turns Passed 2127 | 90 252 147 793 13 495 20 317 Spaces Moved 982 | 53 122 90 376 9 242 13 77 Core 17 | 10 . . . . . . 7 Treads 965 | 43 122 90 376 9 242 13 70 Legs . | . . . . . . . . Wheels . | . . . . . . . . Hover . | . . . . . . . . Flight . | . . . . . . . . Fastest Speed 50 | 50 160 160 160 160 160 160 160 Average Speed 163 | 143 160 160 160 160 160 160 220 Slowest Speed 750 | 160 160 160 160 160 160 160 750 Overloaded Moves . | . . . . . . . . Propulsion Burnouts . | . . . . . . . . Robots Hopped . | . . . . . . . . Cave-ins Triggered . | . . . . . . . . Exploration Rate (%) 25 | 6 25 33 29 10 23 . 50 Regions Visited 7 Branch Regions 2 Pre-discovered Areas . | . . . . . . . . Known Exits Taken 1 | . . . . . . 1 . Unknown Exits Taken 6 | 1 1 1 1 1 1 . . Scrap Searched . | . . . . . . . . Spaces Dug . | . . . . . . . . Terrain Destroyed 41 | . . 11 . . 7 . 23 Melee . | . . . . . . . . Projectile 7 | . . . . . 7 . . AOE 34 | . . 11 . . . . 23 Terrain Rammed . | . . . . . . . . Walls Destroyed . | . . . . . . . . Machines Disabled . | . . . . . . . . Actions | -11 -10 -10 -9 -9 -8 -7 -7 --------- Run | Yrd Mat Min Mat Min Mat Fac DSF Total 1346 | 67 163 91 539 8 305 12 161 Wait 192 | . 18 . 126 . 13 . 35 Move 975 | 52 121 89 375 8 241 12 77 Hop . | . . . . . . . . Pick Up 39 | 9 8 . 8 . 10 . 4 Fast Attach . | . . . . . . . . Attach 16 | 6 . . 4 . 5 . 1 Detach . | . . . . . . . . Swap 15 | . 3 1 2 . 3 . 6 Drop 19 | . 4 . 5 . 6 . 4 Fire 90 | . 9 1 19 . 27 . 34 Melee . | . . . . . . . . Ram . | . . . . . . . . Kick . | . . . . . . . . Crush . | . . . . . . . . Escape Stasis . | . . . . . . . . Rewire . | . . . . . . . . Trap . | . . . . . . . . Miscellaneous . | . . . . . . . . Route ------- -11/Scrapyard -10/Materials (discovered 2 exits: [*Min x2]) -10/Mines -9/Materials -9/Mines -8/Materials -7/Factory -7/DSF History --------- Turn | Location | Event 18 | -11/Scrapyard | Discovered new exit (range 16) 91 | -11/Scrapyard | Entered Materials 91 | -10/Materials | Discovered new exit (range 9) 296 | -10/Materials | Discovered new exit (range 10) 312 | -10/Materials | Build established: Mutant 343 | -10/Materials | Entered Mines 460 | -10/Mines | Discovered new exit (range 12) 490 | -10/Mines | Entered Materials 490 | -9/Materials | Evolved 2 slots: Utility x2 779 | -9/Materials | Discovered new exit (range 16) 1283 | -9/Materials | Entered Mines 1283 | -9/Mines | Discovered new exit (range 7) 1296 | -9/Mines | Entered Materials 1296 | -8/Materials | Evolved 2 slots: Power x1, Utility x1 1760 | -8/Materials | Discovered new exit (range 7) 1791 | -8/Materials | Entered Factory 1791 | -7/Factory | Evolved 2 slots: Utility x2 1809 | -7/Factory | Identified exit to DSF 1811 | -7/Factory | Entered DSF 1832 | -7/DSF | Additional patrols routed to DSF 2128 | -7/DSF | Self-destructed Last Messages --------------- 02027_ Med. Treads destroyed. 02030_ Penetrated by Slug. 02030_ Destroyed Lgt. Nuclear Core. 02030_ A-02 Transporter destroyed. 02033_ C-30 ARC bursts open, deploying its payload. 02033_ G-50 Soldier unfolds itself. 02033_ G-47 Trooper unfolds itself. 02034_ Critical hit (Burn: +37). 02036_ H-55 Commando destroyed. 02039_ G-47 Trooper destroyed. 02057_ Acquired 4 matter. 02058_ Critical hit (Burn: +37). 02065_ Acquired 3 matter. 02066_ Med. Treads destroyed. 02073_ Destroyed Hvy. Laser. 02078_ The unstable cave ceiling collapses. 02090_ Acquired 1 matter. 02118_ The unstable cave ceiling collapses. 02121_ C-30 ARC bursts open, deploying its payload. 02121_ S-27 Virus unfolds itself. Map ----- +----------------------------------------------------+ | ?????????????????????????????????????????????????? | | ?????????????????????????????????????????????????? | | ?????????????????????????????????????????????????? | | ?????????????????????????????????????#"??????????? | | ?????????????????????????????????????#"??????????? | | ????????????????????????????????????##"####??????? | | ????????????????????????????#???###?#"""""#??????? | | ????????????????????????!! # # ##"""""#??????? | | ???????????????????????? ""##"#???? | | ?????????????????????? """""#???? | | ??????????????????????# ?## #==## ""###????? | | ????????????????????### ??????#???## ###??????? | | ?????????????????????!! ?????????### ###??????? | | ?????????????????????!! ?????????#= ="#??????? | | ??????????????????????! ?????????#== =#???????? | | ????????????????????### ###??????### ##???????? | | ????????????????????#]] !!???????#== #???????? | | ????????????????????#]] !!???????#== %#???????? | | ?????????????????????]] !!??????##== #???????? | | ????????????????##??### ########;;# ###??????? | | ????????????# ??#!!?# #***#[[[## ==#??????? | | ???????????## #!!!# a = #%*** [[[;**[==#??????? | | ?????????? ^ =! = ! #??????? | | ?????????? ![ #??????? | | ?????????? ^ = #??????? | | ????????????# #!!!# % @ #!!!##] #??????? | | ????????????????????# # #!!!## #??????? | | ????????????????????# % # ###########??????? | | ????????????????????#!! !!#####????????????????? | | ???????????????????%ss! !!#????????????????????? | | ??????????????????###s! !!#????????????????????? | | ????????????????????### ###????????????????????? | | ?????????????????????!! !??????????????????????? | | ????????????????????#!! !??????????????????????? | | ????????????????????#!! !??????????????????????? | | ????????????????????### #??????????????????????? | | ??????????????????????# ???????????????????????? | | ?????????????????????? ???????????????????????? | | ?????????????????????? ???????????????????????? | | ??????????????????????! ???????????????????????? | | ??????????????????????? ???????????????????????? | | ?????????????????????????????????????????????????? | | ?????????????????????????????????????????????????? | | ?????????????????????????????????????????????????? | | ?????????????????????????????????????????????????? | | ?????????????????????????????????????????????????? | | ?????????????????????????????????????????????????? | | ?????????????????????????????????????????????????? | | ?????????????????????????????????????????????????? | | | +----------------------------------------------------+ Best States ------------- Heat Dissipation 34 Energy Generation 14 Energy Capacity 250 Matter Stores 300 Matter Capacity 300 Sight Range 16 Robot Scan Range 15 Terrain Scan Density 10 Armor Coverage 225 Resistance: TH 10 Weapon Shielding 33 Evasion (%) 40 Targeting Accuracy 8 Recoil Reduction 2 Item Schematics ----------------- None Robot Schematics ------------------ None Fabricated ------------ Nothing Alien Tech Used ----------------- None Achievements -------------- None Challenges ------------ None Game ------ Seed DamperSwordSabre Manual? 0 Play Time 00:17:07 Cumulative 25.0 hours Start 2024.10.05 @ 02:58:17 End 2024.10.05 @ 03:13:27 Sessions 1 Manual Loads 0 Difficulty Rogue Special Mode None Game No. 137 Rogue 137 Adventurer 0 Explorer 0 Win Type - Total 0 Types 0/0/0/0/0/0/0/0/0 Lore% 5 Gallery% 23 Achievement% 17 Wizard Run 0 Options --------- Layout 0 ASCII 0 Keyboard 0 Movement Arrows Keybinds 0 Fullscreen 2 Font 24/Cog Map View 76x50 Zoom Use 0% Tactical HUD 1 Map Filters NONE Filters NONE Steam 1 RUN: 2db8584f-c8e4-40ed-af9f-d7ce450c577d